bitfinex/quotes_BTCUSD_20250406
["timestamp","ask_amount","ask_price","bid_price","bid_amount"]
[1743964328959,0.005335,79929.0,79928.0,0.02122382]
[1743964329160,0.013869,79928.0,79925.0,0.26368]
[1743964329463,0.013869,79928.0,79908.0,0.2634]
[1743964329667,0.013869,79928.0,79909.0,0.12540557]
[1743964329869,0.013869,79928.0,79909.0,0.12540546]
[1743964330117,0.013869,79928.0,79914.0,0.175187]
[1743964330412,0.175117,79947.0,79915.0,0.12290297]
[1743964330632,0.005,79928.0,79915.0,0.12290297]
[1743964330914,0.0454,79951.0,79916.0,0.00250206]
[1743964331068,0.012509,79941.0,79917.0,0.12290297]
[1743964331269,0.187656,79934.0,79908.0,0.2634]
[1743964331514,0.175173,79921.0,79900.0,0.00045616]
[1743964331813,0.16830297,79920.0,79900.0,0.00045616]
[1743964332041,0.175177,79919.0,79900.0,0.00045616]
[1743964332256,0.16830297,79920.0,79900.0,0.00045616]
[1743964332257,0.12290297,79918.0,79900.0,0.00045616]
[1743964332413,0.175188,79914.0,79900.0,0.00045616]
[1743964332573,0.29809097,79914.0,79900.0,0.00045616]
[1743964332778,0.175216,79901.0,79900.0,0.00045616]
[1743964332983,0.175212,79904.0,79900.0,0.00045616]
[1743964333188,0.0947,79920.0,79900.0,0.00045616]
[1743964333386,0.34,79914.0,79900.0,0.00045616]
[1743964333588,0.34,79912.0,79900.0,0.00045616]
[1743964333792,0.34,79910.0,79900.0,0.00045616]
[1743964334010,0.001,79901.0,79900.0,0.00045616]
[1743964334641,0.001,79901.0,79900.0,0.12586212]
[1743964334843,0.0493,79935.0,79900.0,0.12586212]
[1743964334844,0.175154,79930.0,79900.0,0.12586212]
[1743964335044,0.0466,79937.0,79902.0,0.35454085]
[1743964335045,0.005,79910.0,79902.0,0.35454085]
[1743964335246,0.005,79910.0,79903.0,0.38390297]
[1743964335643,0.175159,79927.0,79900.0,0.00045616]
[1743964335878,0.059109,79937.0,79900.0,0.00045616]
[1743964335879,0.34,79932.0,79903.0,0.12290297]
[1743964336080,0.006,79910.0,79904.0,0.12540571]
[1743964336457,0.34,79932.0,79904.0,0.12290297]
[1743964336665,0.175164,79925.0,79904.0,0.12290297]
[1743964336960,0.005,79910.0,79904.0,0.1254056]
[1743964337163,0.005,79910.0,79904.0,0.12290297]
[1743964337361,0.005,79910.0,79900.0,0.00045616]
[1743964337362,0.175215,79902.0,79900.0,0.00045616]
[1743964337767,0.352515,79901.0,79900.0,0.00045616]
[1743964338060,0.47541797,79901.0,79900.0,0.00045616]
[1743964338259,0.46290297,79901.0,79900.0,0.00045616]
[1743964338457,0.47541797,79901.0,79900.0,0.00045616]
[1743964338690,0.48995882,79901.0,79900.0,1.6e-07]
[1743964338875,0.527783,79879.0,79878.0,1.09370975]
[1743964339099,0.175279,79873.0,79869.0,0.01238975]
[1743964339248,0.34,79878.0,79869.0,0.01238975]
[1743964340300,0.34,79889.0,79869.0,0.01238975]
[1743964340504,0.34,79887.0,79869.0,0.01238975]
[1743964340842,0.175237,79892.0,79870.0,0.12540708]
[1743964340843,0.005,79878.0,79870.0,0.12540708]
[1743964341185,0.005,79878.0,79869.0,0.01338975]
[1743964341432,0.005,79878.0,79870.0,0.00250403]
[1743964341618,0.0003352,79886.0,79870.0,0.125407]
[1743964342136,0.0128522,79886.0,79869.0,0.01238975]
[1743964342500,0.187804,79870.0,79869.0,0.01238975]
[1743964342653,0.65060697,79870.0,79869.0,0.01238975]
[1743964342854,0.65060697,79870.0,79847.0,0.00013693]
[1743964342855,0.187835,79857.0,79847.0,0.00013693]
[1743964343058,0.01252,79866.0,79847.0,0.00013693]
[1743964343059,0.34,79865.0,79847.0,0.00013693]
[1743964343288,0.352521,79863.0,79847.0,0.00013693]
[1743964343460,0.12290297,79862.0,79847.0,0.00013693]
[1743964343842,0.012522,79857.0,79847.0,0.00013693]
[1743964344047,0.12290297,79857.0,79847.0,0.00013693]
[1743964344272,0.12290297,79857.0,79856.0,1.0824]
[1743964344684,0.12290297,79857.0,79856.0,1.0814]
[1743964344885,0.12290297,79857.0,79856.0,1.0824]
[1743964345117,0.12290297,79857.0,79856.0,1.0814]
[1743964345494,0.12290297,79857.0,79856.0,1.0824]
[1743964345495,0.005,79857.0,79856.0,1.0824]
[1743964345672,0.01,79857.0,79856.0,1.0824]
[1743964345867,0.01,79857.0,79856.0,1.20530297]
[1743964346073,0.01,79857.0,79856.0,1.21782497]
[1743964346680,0.0074165,79857.0,79856.0,1.55782497]
[1743964346889,0.0003352,79886.0,79880.0,0.012518]
[1743964347076,0.0003352,79886.0,79881.0,0.12290297]
[1743964347481,0.0003352,79886.0,79885.0,0.012517]
[1743964347688,0.0003352,79886.0,79885.0,0.13541997]
[1743964347977,0.0003352,79886.0,79885.0,0.49246385]
[1743964348202,0.0053352,79886.0,79885.0,0.85331843]
[1743964348362,0.0053352,79886.0,79885.0,0.84093836]
[1743964348568,0.0003352,79886.0,79885.0,0.82639751]
[1743964348987,0.0053352,79886.0,79885.0,0.36349454]
[1743964349160,0.0053352,79886.0,79885.0,0.00013693]
[1743964350166,0.0053352,79886.0,79885.0,0.00113693]
[1743964350456,0.5155842,79886.0,79885.0,0.00013693]
[1743964350657,0.48075517,79886.0,79873.0,0.0001674]
[1743964350830,0.352519,79874.0,79873.0,0.0001674]
[1743964351102,0.53746282,79874.0,79873.0,0.0001674]
[1743964351641,0.175334,79848.0,79822.0,1.0816]
[1743964351845,0.12290297,79847.0,79822.0,1.0816]
[1743964352042,0.175363,79835.0,79822.0,1.0816]
[1743964352289,0.27,79835.0,79822.0,1.0816]
[1743964352460,0.34,79839.0,79822.0,1.0816]
[1743964352661,0.34,79856.0,79827.0,0.12307057]
[1743964352875,0.12290297,79838.0,79827.0,0.0001676]
[1743964353286,0.12290297,79838.0,79827.0,0.00062281]
[1743964354174,0.006,79838.0,79827.0,0.00062281]
[1743964354370,0.13542797,79837.0,79827.0,0.00062281]
[1743964354484,0.12290297,79837.0,79827.0,0.00062281]
[1743964354693,0.175365,79834.0,79827.0,0.00062281]
[1743964354893,0.12290297,79833.0,79827.0,0.00062281]
[1743964355294,0.011,79838.0,79827.0,0.00062281]
[1743964355497,0.12290297,79837.0,79827.0,0.00062281]
[1743964355763,0.011,79838.0,79827.0,0.00062281]
[1743964355764,0.46290297,79836.0,79827.0,0.00062281]
[1743964355958,0.63826397,79836.0,79827.0,0.00062281]
[1743964356114,0.180364,79834.0,79827.0,0.00162281]
[1743964356316,0.12290297,79833.0,79827.0,0.00162281]
[1743964356721,0.29826997,79833.0,79827.0,0.00162281]
[1743964356916,0.175376,79829.0,79827.0,0.00162281]
[1743964357117,0.13542897,79828.0,79827.0,0.00062281]
[1743964357336,0.48996982,79828.0,79827.0,0.00062281]
[1743964357562,0.48996982,79828.0,79820.0,0.0001]
[1743964357563,0.187953,79807.0,79801.0,0.0001672]
[1743964357760,0.71378297,79807.0,79801.0,0.0001672]
[1743964357964,0.34,79806.0,79801.0,0.0001672]
[1743964358162,0.36707185,79802.0,79801.0,0.0001672]
[1743964358369,0.48997482,79802.0,79801.0,0.0001672]
[1743964358575,0.49497482,79802.0,79801.0,0.0001672]
[1743964358747,0.012531,79799.0,79775.0,0.0001]
[1743964358941,0.012534,79778.0,79775.0,0.0001]
[1743964359147,0.74077782,79778.0,79775.0,0.0001]
[1743964359344,0.80387782,79778.0,79777.0,0.1578513]
[1743964359534,0.528089,79749.0,79748.0,1.082]
[1743964359746,0.352539,79748.0,79726.0,1.082]
[1743964359949,0.47544197,79748.0,79726.0,1.082]
[1743964360399,0.46290297,79748.0,79747.0,0.00030451]
[1743964360709,0.45769557,79748.0,79747.0,0.00030451]
[1743964360912,0.46269557,79748.0,79747.0,0.00030451]
[1743964361293,0.005,79748.0,79747.0,0.00030451]
[1743964362277,0.01,79748.0,79747.0,0.00030451]
[1743964362705,0.01,79748.0,79747.0,0.00507683]
[1743964363007,0.01,79748.0,79747.0,0.12320748]
[1743964363214,0.01,79748.0,79747.0,0.12798345]
[1743964363563,0.65294054,79800.0,79747.0,0.12798345]
[1743964363564,0.012533,79787.0,79747.0,0.49134106]
[1743964363743,0.005,79803.0,79747.0,0.49134106]
[1743964363744,0.12290297,79786.0,79748.0,0.12290297]
[1743964363946,0.175477,79783.0,79748.0,0.12290297]
[1743964364150,0.175486,79779.0,79749.0,0.00475101]
[1743964364354,0.175468,79787.0,79750.0,0.12290297]
[1743964364586,0.175471,79785.0,79750.0,0.12290297]
[1743964364730,0.175493,79776.0,79751.0,0.00474775]
[1743964365058,0.175491,79776.0,79752.0,0.12290297]
[1743964365269,0.005,79786.0,79756.0,0.12290297]
[1743964365477,0.175468,79787.0,79757.0,1.08268]
[1743964365671,0.175472,79785.0,79758.0,0.12290297]
[1743964365880,0.012535,79774.0,79757.0,1.08268]
[1743964366097,0.175527,79760.0,79757.0,1.08268]
[1743964366270,0.175527,79760.0,79758.0,0.00460883]
[1743964366443,0.175527,79760.0,79757.0,1.08268]
[1743964366649,0.175527,79760.0,79758.0,0.00465917]
[1743964366852,0.175527,79760.0,79757.0,1.08268]
[1743964367054,0.175527,79760.0,79758.0,0.00465917]
[1743964367252,0.005,79760.0,79758.0,0.00465917]
[1743964367661,0.175518,79764.0,79758.0,0.00465917]
[1743964368073,0.005,79760.0,79758.0,0.00465917]
[1743964368285,0.005,79760.0,79757.0,1.08268]
[1743964368516,0.005,79760.0,79758.0,0.00408594]
[1743964368875,0.005,79760.0,79757.0,1.08268]
[1743964369081,0.005,79760.0,79758.0,0.00408594]
[1743964369082,0.175528,79759.0,79758.0,0.00408594]
[1743964369278,0.175528,79759.0,79747.0,0.00030451]
[1743964369279,0.175546,79751.0,79747.0,0.00030451]
[1743964369480,0.175552,79748.0,79747.0,0.00030451]
[1743964369757,0.29845497,79748.0,79747.0,0.00030451]
[1743964370058,0.31099397,79748.0,79747.0,0.00030451]
[1743964370177,0.65099397,79748.0,79747.0,0.00030451]
[1743964370374,0.29845497,79748.0,79747.0,0.00030451]
[1743964370585,0.175544,79753.0,79747.0,0.00030451]
[1743964370785,0.175551,79749.0,79747.0,0.00030451]
[1743964371009,0.005,79748.0,79747.0,0.00030451]
[1743964371221,0.01,79748.0,79747.0,0.00030451]
[1743964371423,0.005,79748.0,79747.0,0.00030451]
[1743964371841,0.175511,79767.0,79747.0,0.00030451]
[1743964372063,0.12290297,79767.0,79747.0,0.00030451]
[1743964372261,0.005,79749.0,79748.0,0.12290297]
[1743964372465,0.005,79749.0,79748.0,0.12712855]
[1743964372688,0.175492,79776.0,79748.0,0.17542855]
[1743964372857,0.005,79753.0,79748.0,0.17542855]
[1743964373063,0.175489,79777.0,79748.0,0.17542855]
[1743964373509,0.175482,79781.0,79748.0,0.17542855]
[1743964373510,0.005,79749.0,79748.0,0.17542855]
[1743964373713,0.175511,79767.0,79748.0,0.25034558]
[1743964373921,0.12290297,79776.0,79748.0,0.25034558]
[1743964374121,0.005,79753.0,79749.0,0.12541053]
[1743964374325,0.17548,79781.0,79750.0,0.65294054]
[1743964374536,0.24576,79805.0,79750.0,0.65294054]
[1743964374537,0.175457,79792.0,79750.0,1.01990607]
[1743964374711,0.005,79777.0,79751.0,0.12290297]
[1743964375036,0.005,79777.0,79751.0,0.13544197]
[1743964375157,0.005,79777.0,79772.0,0.012535]
[1743964375365,0.005,79777.0,79773.0,1.32868]
[1743964375575,0.1067511,79816.0,79776.0,0.012535]
[1743964375795,0.1067511,79816.0,79787.0,0.012533]
[1743964375994,0.1067511,79816.0,79780.0,0.66547454]
[1743964375995,0.175417,79810.0,79789.0,0.0483]
[1743964376225,0.175415,79811.0,79790.0,0.12647906]
[1743964376459,0.1067511,79816.0,79790.0,0.00357609]
[1743964376678,0.1067511,79816.0,79790.0,0.00477222]
[1743964376679,0.175436,79801.0,79790.0,0.00477222]
[1743964376858,0.175424,79807.0,79790.0,0.00357609]
[1743964377094,0.175418,79809.0,79790.0,0.00357609]
[1743964377095,0.1117511,79816.0,79791.0,0.12540923]
[1743964377265,0.1117511,79816.0,79792.0,0.00357754]
[1743964377483,0.175452,79794.0,79792.0,0.00476788]
[1743964377692,0.175456,79792.0,79787.0,0.00013711]
[1743964377892,0.175464,79788.0,79787.0,0.00013711]
[1743964378086,0.17546,79790.0,79787.0,0.00013711]
[1743964378290,0.175449,79796.0,79787.0,0.00013711]
[1743964378622,0.175415,79811.0,79788.0,0.12290297]
[1743964378790,0.01253,79804.0,79787.0,0.00013711]
[1743964378990,0.17535899,79799.0,79789.0,0.00477657]
[1743964379233,0.17535899,79799.0,79787.0,0.00013711]
[1743964379414,0.175446,79797.0,79787.0,0.00013711]
[1743964379637,0.012533,79788.0,79787.0,0.00013711]
[1743964379754,0.175495,79774.0,79748.0,0.36335761]
[1743964379956,0.65093297,79774.0,79748.0,0.36335761]
[1743964380216,0.65093297,79774.0,79745.0,0.2448]
[1743964380419,0.63839797,79774.0,79745.0,0.2448]
[1743964380637,0.12290297,79774.0,79745.0,0.2448]
[1743964380848,0.00013661,79788.0,79750.0,0.65294054]
[1743964381051,0.175478,79783.0,79745.0,0.2448]
[1743964381257,0.005,79774.0,79745.0,0.2448]
[1743964381477,0.01,79774.0,79745.0,0.257339]
[1743964381705,0.005,79771.0,79761.0,1.08312]
[1743964381907,0.005,79767.0,79761.0,1.08312]
[1743964382327,0.407537,79762.0,79761.0,1.08312]
[1743964382556,0.005,79745.0,79739.0,1.08312]
[1743964382763,0.005,79740.0,79739.0,1.08312]
[1743964382990,0.005,79730.0,79718.0,1.08312]
[1743964383192,0.005,79727.0,79716.0,1.08312]
[1743964383396,0.005,79735.0,79717.0,0.12541149]
[1743964383599,0.34,79738.0,79717.0,0.12541149]
[1743964383808,0.005,79731.0,79717.0,0.12335539]
[1743964386669,0.005,79721.0,79717.0,0.00045242]
[1743964386812,0.34,79737.0,79718.0,0.00250871]
[1743964386813,0.05,79736.0,79718.0,0.00250871]
[1743964387017,0.005,79748.0,79720.0,0.58355685]
[1743964387243,0.005,79728.0,79721.0,0.12290297]
[1743964387404,0.005,79728.0,79722.0,0.31105597]
[1743964387599,0.005,79728.0,79726.0,0.12290297]
[1743964387848,0.005,79748.0,79727.0,0.00250791]
[1743964388051,0.05,79753.0,79728.0,0.12290297]
[1743964388052,0.005,79745.0,79728.0,0.12290297]
[1743964388254,0.005,79736.0,79728.0,0.12290297]
[1743964388458,0.005,79736.0,79731.0,0.12290297]
[1743964388683,0.005,79748.0,79731.0,0.12290297]
[1743964389179,0.005,79748.0,79737.0,0.12290297]
[1743964389588,0.005,79757.0,79737.0,0.12290297]
[1743964389791,0.05,79762.0,79739.0,0.12290297]
[1743964389942,0.005,79768.0,79742.0,0.12290297]
[1743964390144,0.02251363,79761.0,79743.0,0.00250721]
[1743964390331,0.005,79748.0,79744.0,0.12290297]
[1743964390531,0.01,79748.0,79744.0,0.12290297]
[1743964390970,0.02251363,79747.0,79744.0,0.12290297]
[1743964391347,0.02251363,79747.0,79744.0,0.12304001]
[1743964391737,0.02251363,79746.0,79744.0,0.12304001]
[1743964391953,0.005,79768.0,79751.0,0.012539]
[1743964392139,0.00466098,79768.0,79761.0,0.12290297]
[1743964392537,0.00466098,79768.0,79767.0,0.29841397]
[1743964392734,0.00466098,79768.0,79767.0,0.35714997]
[1743964393011,0.00466098,79768.0,79767.0,0.16910297]
[1743964393204,0.0003356,79782.0,79767.0,0.16910297]
[1743964393764,0.0003356,79782.0,79770.0,0.70645982]
[1743964393972,0.0003356,79782.0,79771.0,0.12540947]
[1743964394171,0.0003356,79782.0,79777.0,0.12290297]
[1743964394377,0.0053356,79782.0,79781.0,0.12290297]
[1743964394780,0.0103356,79782.0,79781.0,0.12290297]
[1743964394986,0.00047218,79782.0,79781.0,0.12290297]
[1743964395192,0.00547218,79782.0,79781.0,0.12290297]
[1743964396474,0.00047218,79782.0,79781.0,0.12540934]
[1743964396639,0.00547218,79782.0,79755.0,0.0477]
[1743964396843,0.005,79773.0,79753.0,0.2434]
[1743964397072,0.005,79768.0,79754.0,0.12290297]
[1743964398232,0.01125674,79767.0,79755.0,0.0025072]
[1743964398432,0.01125674,79767.0,79756.0,0.12290297]
[1743964399036,0.001,79768.0,79756.0,0.12290297]
[1743964399299,0.001,79768.0,79756.0,0.36626297]
[1743964399489,0.01125674,79769.0,79756.0,0.36626297]
[1743964399834,0.005,79767.0,79756.0,0.36626297]
[1743964400039,0.01125674,79766.0,79756.0,0.36626297]
[1743964400773,0.01125674,79766.0,79765.0,0.12290297]
[1743964400978,0.005,79769.0,79766.0,0.175513]
[1743964401136,0.005,79769.0,79768.0,0.12290297]
[1743964401366,0.005,79773.0,79752.0,1.0834]
[1743964401582,0.005,79772.0,79757.0,0.12290297]
[1743964401785,0.005,79766.0,79757.0,0.12290297]
[1743964402285,0.005,79766.0,79752.0,1.0834]
[1743964402525,0.05,79763.0,79755.0,0.12290297]
[1743964402732,0.05,79763.0,79752.0,1.0834]
[1743964402733,0.175531,79759.0,79752.0,1.0834]
[1743964402930,0.230537,79755.0,79731.0,1.08304]
[1743964403137,0.055,79755.0,79731.0,1.08304]
[1743964403339,0.055,79755.0,79732.0,0.002508]
[1743964403489,0.055,79755.0,79731.0,1.08304]
[1743964403692,0.05,79755.0,79734.0,0.24336]
[1743964403982,0.005,79757.0,79735.0,0.00250772]
[1743964404111,0.005,79755.0,79735.0,0.00250772]
[1743964404315,0.08249791,79755.0,79739.0,0.24336]
[1743964404548,0.07749791,79755.0,79739.0,0.24336]
[1743964404768,0.09003591,79755.0,79731.0,1.08304]
[1743964405099,0.08249791,79755.0,79731.0,1.08304]
[1743964405782,0.02749791,79755.0,79754.0,0.12300297]
[1743964405980,0.03249791,79755.0,79754.0,0.12300297]
[1743964406181,0.02249791,79755.0,79754.0,0.12300297]
[1743964406427,0.005,79755.0,79754.0,0.12300297]
[1743964406632,0.02249791,79777.0,79755.0,0.01454085]
[1743964406843,0.02249791,79776.0,79766.0,0.12290297]
[1743964407052,0.02249791,79776.0,79767.0,1.32648]
[1743964407267,0.00013658,79777.0,79769.0,0.12290297]
[1743964407478,0.00013658,79777.0,79776.0,0.12290297]
[1743964407716,0.0003356,79782.0,79781.0,0.17548]
[1743964407917,0.005,79824.0,79787.0,0.34]
[1743964408134,0.005,79832.0,79804.0,0.13543297]
[1743964408364,0.00013701,79815.0,79805.0,1.45184821]
[1743964408572,0.00013701,79815.0,79805.0,1.44934297]
[1743964408786,0.00013701,79815.0,79806.0,0.00250546]
[1743964409000,0.00013701,79815.0,79807.0,0.12290297]
[1743964409217,0.005,79799.0,79782.0,1.08308]
[1743964409450,0.05,79807.0,79788.0,0.12290297]
[1743964409659,0.00013701,79815.0,79796.0,0.12290297]
[1743964409864,0.00513701,79815.0,79798.0,0.12290297]
[1743964410272,0.00013701,79815.0,79799.0,0.00250572]
[1743964410416,0.00013701,79815.0,79800.0,0.12290297]
[1743964410620,0.00513701,79815.0,79800.0,0.12290297]
[1743964411178,0.005,79805.0,79785.0,0.24332]
[1743964411402,0.005,79807.0,79786.0,0.12540886]
[1743964411599,0.0003356,79790.0,79786.0,0.12540886]
[1743964411811,0.0003356,79790.0,79786.0,0.12290297]
[1743964412007,0.0003356,79790.0,79786.0,0.12540892]
[1743964412517,0.0003356,79790.0,79786.0,0.12290297]
[1743964412710,0.0003356,79790.0,79787.0,0.00250632]
[1743964412922,0.0053356,79790.0,79788.0,0.12290297]
[1743964413474,0.0053356,79790.0,79782.0,1.08308]
[1743964413475,0.0053356,79790.0,79784.0,0.01251832]
[1743964413682,0.0003356,79790.0,79785.0,0.12290297]
[1743964413902,0.005,79789.0,79782.0,1.08308]
[1743964414080,0.0003356,79790.0,79782.0,1.08308]
[1743964414081,0.055,79783.0,79782.0,1.08308]
[1743964414297,0.005,79768.0,79760.0,0.0001678]
[1743964414505,0.005,79767.0,79760.0,0.0001678]
[1743964414737,0.05,79772.0,79761.0,0.12290297]
[1743964414868,0.0103356,79790.0,79770.0,0.12290297]
[1743964415065,0.0103356,79790.0,79776.0,0.12290297]
[1743964415291,0.0103356,79790.0,79782.0,0.12290297]
[1743964415498,0.0103356,79790.0,79783.0,0.00250599]
[1743964415499,0.0053356,79790.0,79783.0,0.00250599]
[1743964415706,0.0053356,79790.0,79784.0,0.24328]
[1743964415917,0.001,79783.0,79782.0,0.12290297]
[1743964416322,0.0053356,79790.0,79789.0,0.012533]
[1743964416615,0.0003356,79790.0,79789.0,1.20570297]
[1743964416785,0.0103356,79790.0,79789.0,1.20570297]
[1743964417119,0.0053356,79790.0,79789.0,1.20570297]
[1743964417325,0.0053356,79790.0,79789.0,1.0828]
[1743964417511,0.0003356,79790.0,79789.0,1.0828]
[1743964417674,0.0003356,79790.0,79789.0,1.20570297]
[1743964417999,0.0003356,79790.0,79789.0,1.21823597]
[1743964418212,0.0025,79815.0,79797.0,0.012531]
[1743964418372,0.00163701,79815.0,79808.0,0.12290297]
[1743964418575,0.00163701,79815.0,79809.0,0.24328]
[1743964418784,0.00163701,79815.0,79810.0,0.12290297]
[1743964419188,0.00163701,79815.0,79811.0,0.24578537]
[1743964419390,0.00163701,79815.0,79812.0,0.12290297]
[1743964419591,0.00663701,79815.0,79812.0,0.12540812]
[1743964419792,0.00663701,79815.0,79814.0,0.12290297]
[1743964420072,0.005,79851.0,79820.0,0.012528]
[1743964420291,0.00079213,79840.0,79828.0,0.12290297]
[1743964420605,0.05,79833.0,79821.0,1.08264]
[1743964420821,0.005,79831.0,79821.0,1.08264]
[1743964421016,0.05,79833.0,79822.0,0.12290297]
[1743964421017,0.005,79830.0,79822.0,0.12290297]
[1743964421369,0.05,79836.0,79822.0,0.12290297]
[1743964421584,0.055,79833.0,79822.0,0.12290297]
[1743964421937,0.005,79830.0,79822.0,0.12290297]
[1743964422142,0.055,79822.0,79821.0,1.08264]
[1743964422341,0.005,79806.0,79798.0,1.08264]
[1743964422671,0.05,79809.0,79782.0,0.00024907]
[1743964422672,0.005,79804.0,79790.0,1.08264]
[1743964422882,0.005,79804.0,79791.0,0.12290297]
[1743964423250,0.05,79809.0,79792.0,0.00250601]
[1743964423447,0.05,79809.0,79793.0,0.12290297]
[1743964423707,0.005,79806.0,79794.0,0.00250585]
[1743964423883,0.004,79806.0,79795.0,0.12290297]
[1743964424080,0.05,79821.0,79799.0,0.12290297]
[1743964424281,0.005,79816.0,79799.0,0.12290297]
[1743964424543,0.005,79809.0,79799.0,0.12290297]
[1743964424750,0.005,79829.0,79806.0,0.12290297]
[1743964424910,0.011,79830.0,79807.0,0.36860829]
[1743964425091,0.006,79830.0,79813.0,0.12290297]
[1743964425290,0.011,79830.0,79813.0,0.12290297]
[1743964425474,0.011,79830.0,79807.0,0.2432]
[1743964425475,0.006,79830.0,79818.0,0.12290297]
[1743964425682,0.0003356,79840.0,79829.0,0.12290297]
[1743964425885,0.0003356,79840.0,79839.0,0.012525]
[1743964426090,0.0003356,79840.0,79839.0,0.12540715]
[1743964426287,0.0003356,79840.0,79839.0,0.12290297]
[1743964426563,0.0003356,79840.0,79839.0,0.12540711]
[1743964426757,0.00079213,79840.0,79839.0,0.12290297]
[1743964426973,0.01079213,79840.0,79839.0,0.12290297]
[1743964427196,0.00579213,79840.0,79839.0,0.12290297]
[1743964427512,0.10764074,79868.0,79840.0,0.222049]
[1743964427715,0.10777767,79868.0,79857.0,0.12290297]
[1743964427916,0.10777767,79868.0,79867.0,0.01252]
[1743964428094,0.10777767,79868.0,79867.0,1.20534297]
[1743964428301,0.10677767,79868.0,79867.0,1.20534297]
[1743964428712,0.10677767,79868.0,79867.0,1.44854297]
[1743964429093,0.10677767,79868.0,79867.0,1.32564]
[1743964429317,0.16177767,79868.0,79867.0,1.08244]
[1743964429719,0.06013693,79868.0,79867.0,1.08344]
[1743964430112,0.05513693,79868.0,79867.0,1.20634297]
[1743964430316,0.05513693,79868.0,79867.0,1.08244]
[1743964430317,0.58794593,79868.0,79867.0,1.08244]
[1743964430494,0.40513693,79868.0,79867.0,1.08244]
[1743964430695,0.05,79855.0,79842.0,1.08224]
[1743964430899,0.05,79855.0,79843.0,0.12540753]
[1743964431097,0.005,79853.0,79843.0,0.12540753]
[1743964431325,0.005,79843.0,79842.0,1.08224]
[1743964431901,0.004,79843.0,79842.0,1.08224]
[1743964432542,0.00413688,79843.0,79842.0,1.08224]
[1743964432967,0.05413688,79843.0,79842.0,1.08224]
[1743964433137,0.054,79841.0,79840.0,0.0001]
[1743964433947,0.00513688,79843.0,79840.0,0.0001]
[1743964434161,0.05,79841.0,79840.0,0.0001]
[1743964434368,0.059,79841.0,79840.0,0.0001]
[1743964434576,0.234348,79841.0,79840.0,0.0001]
[1743964434763,0.059,79841.0,79840.0,0.0001]
[1743964435625,0.064,79841.0,79840.0,0.0001]
[1743964436153,0.014,79841.0,79840.0,0.0001]
[1743964436473,0.01,79841.0,79840.0,0.0001]
[1743964436694,0.01,79841.0,79840.0,0.12300297]
[1743964437913,0.0503356,79870.0,79845.0,0.187862]
[1743964437914,0.0003356,79870.0,79845.0,0.187862]
[1743964438178,0.00047245,79870.0,79854.0,0.12290297]
[1743964438354,0.00047245,79870.0,79865.0,0.12290297]
[1743964438784,0.00047245,79870.0,79866.0,0.0025037]
[1743964438921,0.00047245,79870.0,79867.0,0.12290297]
[1743964439119,0.00047245,79870.0,79868.0,0.00250363]
[1743964439327,0.00547245,79870.0,79869.0,0.12290297]
[1743964439764,0.00047245,79870.0,79869.0,0.12290297]
[1743964440137,0.00547245,79870.0,79869.0,0.12290297]
[1743964440341,0.00547245,79870.0,79869.0,0.17572421]
[1743964440539,0.0003356,79880.0,79869.0,0.17572421]
[1743964440540,0.0003356,79880.0,79873.0,0.187797]
[1743964440722,0.0003356,79880.0,79879.0,0.20232385]
[1743964440922,0.0003352,79882.0,79880.0,0.01454085]
[1743964441167,0.0003352,79882.0,79881.0,0.12290297]
[1743964441514,0.0003352,79882.0,79881.0,0.14615992]
[1743964441779,0.0003352,79882.0,79881.0,0.12290297]
[1743964442498,0.0053352,79882.0,79881.0,0.12390297]
[1743964442924,0.0003352,79882.0,79881.0,0.12290297]
[1743964443154,0.004,79881.0,79879.0,0.24308]
[1743964443322,0.004,79880.0,79879.0,0.24308]
[1743964443548,0.05,79881.0,79869.0,0.0123986]
[1743964443745,0.00389741,79879.0,79870.0,0.12290297]
[1743964444496,0.0003352,79882.0,79871.0,0.00250365]
[1743964444695,0.00389741,79872.0,79866.0,0.243]
[1743964445173,0.00389741,79862.0,79861.0,0.02325695]
[1743964445468,0.05,79867.0,79861.0,0.12303982]
[1743964445678,0.00389741,79871.0,79862.0,0.12290297]
[1743964445992,0.025,79866.0,79862.0,0.12290297]
[1743964446113,0.05,79869.0,79862.0,0.12290297]
[1743964446427,0.00389741,79871.0,79862.0,0.12290297]
[1743964446638,0.025,79870.0,79862.0,0.12290297]
[1743964446841,0.025,79866.0,79862.0,0.12290297]
[1743964447163,0.00389741,79863.0,79861.0,0.00013685]
[1743964447362,0.00389741,79871.0,79862.0,0.12290297]
[1743964447572,0.05,79866.0,79863.0,0.00250385]
[1743964447765,0.05,79866.0,79864.0,0.12290297]
[1743964447969,0.00389741,79862.0,79861.0,0.00013685]
[1743964448168,0.06641941,79856.0,79855.0,1.07721685]
[1743964448329,0.00389741,79844.0,79835.0,1.08172]
[1743964448528,0.00389741,79843.0,79835.0,1.08172]
[1743964449632,0.05389741,79841.0,79835.0,1.08172]
[1743964449846,0.002,79843.0,79840.0,0.12600297]
[1743964450054,0.002,79843.0,79841.0,0.12540729]
[1743964450325,0.001,79843.0,79842.0,0.12290297]
[1743964450558,0.006,79843.0,79842.0,0.12290297]
[1743964450684,0.00575183,79843.0,79842.0,0.12290297]
[1743964450884,0.00075183,79843.0,79842.0,0.12290297]
[1743964451106,0.00389741,79845.0,79842.0,0.12290297]
[1743964451306,0.005,79843.0,79842.0,0.12290297]
[1743964451513,0.01,79843.0,79842.0,0.12290297]
[1743964451901,0.005,79843.0,79842.0,0.12290297]
[1743964452104,0.005,79843.0,79840.0,0.0001]
[1743964452333,0.05389741,79841.0,79840.0,0.0001]
[1743964453343,0.06642141,79841.0,79840.0,0.0001]
[1743964453554,0.39889741,79841.0,79840.0,0.0001]
[1743964454105,0.395,79841.0,79840.0,0.0001]
[1743964454310,0.0489,79848.0,79840.0,0.0001]
[1743964454311,0.005,79843.0,79840.0,0.12300297]
[1743964454517,0.005,79843.0,79841.0,1.20724749]
[1743964454824,0.0489,79865.0,79841.0,1.20474297]
[1743964454825,0.00389741,79845.0,79841.0,1.20474297]
[1743964455025,0.00389741,79842.0,79841.0,1.08184]
[1743964455275,0.00389741,79845.0,79841.0,1.20474297]